Cogmind - Beta 14 @@@ ROGUE MODE // 2024.08.09 @ 14:50:23 Player: Compilatron Result: Destroyed by D-53 Grenadier with Mini Grenade Launcher Performance ------------- Evolutions (1) 500 Regions Visited (3) 600 Robots Destroyed (20) 100 Value Destroyed (301) 301 Prototype IDs (1) 20 Alien Tech Used (0) 0 Bonus (0) 0 TOTAL SCORE: 1521 Bonus ------- None Cogmind --------- Core Integrity 0/400 Matter 300/300 Energy 99/100 System Corruption 0% Temperature Cool (0) Movement Core (100) Ox1 Location -9/Mines Parts ------- > --- POWER (1) -------- (None) > --- PROPULSION (4) --- (None) > --- UTILITY (2) ------ Small Storage Unit > --- WEAPON (2) ------- (None) > --- INVENTORY (8) ---- Large Storage Unit Medium Matter Pod (100) Visual Processing Unit Sensor Array Terrain Scan Processor Seismic Detector Hardened Light Armor Plating Beam Rifle Peak State ------------ > --- POWER ------------ Light Ion Engine > --- PROPULSION ------- Light Treads Hover Unit Combat Airjet Combat Airjet > --- UTILITY ---------- Small Storage Unit Improved Terrain Scanner > --- WEAPON ----------- Improved Assault Rifle Improved Assault Rifle > --- INVENTORY -------- Large Storage Unit Medium Matter Pod Visual Processing Unit Sensor Array Terrain Scan Processor Seismic Detector Hardened Light Armor Plating Beam Rifle [Rating: 24] Favorites ----------- Power Light Ion Engine Engine Light Ion Engine Propulsion Light Treads Treads Light Treads Hover Unit Combat Airjet Utility Small Storage Unit Device Improved Terrain Scanner Storage Small Storage Unit Weapon Small Laser Energy Gun Small Laser Ballistic Gun Improved Assault Rifle Build | -11 -10 -9 -9 ------- Run | Yrd Mat Mat Min Slots Evolved 2 | . . 2 . Power . | . . . . Propulsion 2 | . . 2 . Utility . | . . . . Weapon . | . . . . Parts Attached 17 | 8 6 3 . Power 2 | 1 1 . . Engine 2 | 1 1 . . Core . | . . . . Reactor . | . . . . Propulsion 6 | 2 2 2 . Treads 3 | 2 . 1 . Leg . | . . . . Wheel . | . . . . Hover 3 | . 2 1 . Flight . | . . . . Utility 4 | 3 . 1 . Device 3 | 2 . 1 . Storage 1 | 1 . . . Processor . | . . . . Hackware . | . . . . Protection . | . . . . Artifact . | . . . . Weapon 5 | 2 3 . . Energy Gun 3 | 2 1 . . Energy Cannon . | . . . . Ballistic Gun 2 | . 2 . . Ballistic Cannon . | . . . . Launcher . | . . . . Special Weapon . | . . . . Impact Weapon . | . . . . Slashing Weapon . | . . . . Piercing Weapon . | . . . . Special Melee Weapon . | . . . . Unidentified Prototypes 1 | . 1 . . Parts Lost 8 | . . . 8 Power 1 | . . . 1 Propulsion 4 | . . . 4 Utility 1 | . . . 1 Weapon 2 | . . . 2 Highest Loss Streak 8 | . . . 8 To Critical Strikes . | . . . . Average Slot Usage (%) 94 | . 100 86 83 Engine 12 | . 14 11 8 Treads 8 | . 7 11 9 Hover 21 | . 20 22 27 Device 11 | . 14 8 9 Storage 12 | . 14 11 11 Energy Gun 10 | . 16 . . Ballistic Gun 14 | . 11 22 16 Peak Build Rating 24 | 11 22 24 24 Average Rating 7 | 6 17 22 20 On Entrance 14 | . 10 22 24 Naked Turns . | . . . . Heaviest Build 15 | 12 15 15 15 Greatest Support 40 | 40 40 30 30 Greatest Overweight (x) 1 | . . . 1 Average Overweight (x) . | . . . . Largest Inventory Capacity 8 | 8 8 8 8 Average Capacity 7 | 7 8 8 8 Most Carried 8 | 8 8 8 8 Average Carried 5 | 5 7 7 8 Final Capacity 8 | 8 8 8 8 Final Carried 8 | 8 8 8 8 Class Distribution -------------------- 99% | Mutant Dominant Class ---------------- Mutant | -10/Materials Mutant | -9/Materials Scavenger-Mutant | -9/Mines Resources | -11 -10 -9 -9 ----------- Run | Yrd Mat Mat Min Matter Collected 547 | 280 103 164 . Remotely . | . . . . Salvage Created 565 | 273 128 164 . Parts 44 | 25 7 12 . Haulers Intercepted . | . . . . Recyclers Shooed 3 | . 3 . . Parts Field Recycled . | . . . . Retrieved Matter . | . . . . Parts Self-Destructed . | . . . . Prevented . | . . . . Kills | -11 -10 -9 -9 ------- Run | Yrd Mat Mat Min Combat Hostiles Destroyed 5 | . 2 3 . Guns 5 | . 2 3 . Classes Destroyed 6 | 3 2 1 . Worker 4 | 4 . . . Tunneler 7 | 7 . . . Recycler 1 | 1 . . . Watcher 3 | . 2 1 . Grunt 4 | . 2 2 . Sentry 1 | . . 1 . Best Kill Streak 3 | 3 2 2 . Combat Bots Only 1 | . 1 1 . Max Kills in Single Turn 1 | 1 1 1 . Gunslinging . | . . . . Exploded . | . . . . Melee . | . . . . Uniques/NPCs Destroyed . | . . . . Combat | -11 -10 -9 -9 -------- Run | Yrd Mat Mat Min Hostile Shots Fired 76 | 2 33 21 20 Missed 13 | . 10 3 . Damage Taken 1410 | 84 287 257 782 Core 562 | 16 120 43 383 Absorbed by Shields . | . . . . Regen/Repaired (Parts) 16 | . . 16 . Core Remaining (%) 69 | 93 45 . . Volleys Fired 59 | 24 22 13 . Largest 2 | 2 2 2 . Hottest 90 | 90 90 46 . Shots Fired 116 | 47 43 26 . Gun 116 | 47 43 26 . Cannon . | . . . . Launcher . | . . . . Special . | . . . . Kinetic 66 | . 40 26 . Thermal 50 | 47 3 . . Explosive . | . . . . Electromagnetic . | . . . . Robot Hit Streak 10 | 9 10 10 . Robot Miss Streak 4 | 4 3 2 . Penetration Max . | . . . . Secondary Targets . | . . . . Shots Hit Robots 76 | 28 33 15 . Core Hits 31 | 16 8 7 . Critical Kills . | . . . . Critical Parts Destroyed . | . . . . Critical Strikes 2 | 2 . . . Burn 2 | 2 . . . Melee Attacks . | . . . . Impact . | . . . . Slashing . | . . . . Piercing . | . . . . Sneak Attacks . | . . . . Combat Hostiles . | . . . . Follow-up Attacks . | . . . . Damage Inflicted 1138 | 353 558 227 . Guns 1088 | 330 531 227 . Cannons . | . . . . Explosions . | . . . . Melee . | . . . . Ramming 50 | 23 27 . . Kinetic 735 | . 508 227 . Thermal 353 | 330 23 . . Explosive . | . . . . Electromagnetic . | . . . . Impact . | . . . . Slashing . | . . . . Piercing . | . . . . Highest Corruption 2 | . 2 . . Average Corruption 2 | . 2 . . Corruption Purged . | . . . . Corruption Blocked . | . . . . Effects 3 | . 3 . . Message Errors 1 | . 1 . . Matter Fused 1 | . 1 . . Data Loss (major) 1 | . 1 . . Overload Shots . | . . . . Overflow Damage . | . . . . Projectiles . | . . . . Explosions . | . . . . Melee . | . . . . Knockbacks . | . . . . Impact . | . . . . Kinetic . | . . . . Secondary . | . . . . Self-Inflicted Damage 12 | . 12 . . Shots . | . . . . Rammed 15 | 10 5 . . Targets Rammed 15 | 10 5 . . Kicked . | . . . . Crushed . | . . . . Highest Temperature 240 | 240 30 19 . Average Temperature 49 | 67 5 5 . Received Heat Transfer 312 | . 159 153 . Effects 1 | 1 . . . Energy Bleed 1 | 1 . . . Siege Activations . | . . . . Robots Corrupted . | . . . . Combat Hostiles . | . . . . Parts Fried . | . . . . Impact Corruptions . | . . . . Robots Melted . | . . . . Combat Hostiles . | . . . . Parts Melted 2 | 2 . . . Heat Transferred 1114 | 1052 62 . . Parts Sabotaged . | . . . . Parts Stolen . | . . . . Parts Stripped . | . . . . Power Chain Reactions . | . . . . Alert | -11 -10 -9 -9 ------- Run | Yrd Mat Mat Min Peak Influence 160 | 52 133 160 62 Initial 62 | . 31 55 62 Average 29 | 27 75 93 50 Maximum Alert Level . | . . . . Low Security (%) 100 | 100 100 100 100 Level 1 . | . . . . Level 2 . | . . . . Level 3 . | . . . . Level 4 . | . . . . Level 5 . | . . . . High Security . | . . . . Max Security . | . . . . Squads Dispatched . | . . . . Investigation . | . . . . Extermination . | . . . . Reinforcement . | . . . . Assault . | . . . . Garrison . | . . . . Intercept . | . . . . Searches Triggered . | . . . . Construction Impeded . | . . . . Haulers Reinforced . | . . . . Active Scanning Responses . | . . . . Cargo Convoy Interrupts . | . . . . Stealth | -11 -10 -9 -9 --------- Run | Yrd Mat Mat Min Distress Signals 1 | . 1 . . Communications Jammed . | . . . . Distress Signals . | . . . . Times Spotted 13 | 1 5 4 3 Peak Tracking Total 4 | 1 2 3 4 Tactical Retreats . | . . . . Traps | -11 -10 -9 -9 ------- Run | Yrd Mat Mat Min Traps Triggered . | . . . . Indirectly . | . . . . Trap Hack Attempts . | . . . . Triggered . | . . . . Disarmed . | . . . . Reprogrammed . | . . . . Reused . | . . . . Traps Extracted . | . . . . Installed . | . . . . Triggered . | . . . . Machines | -11 -10 -9 -9 ---------- Run | Yrd Mat Mat Min Machines Disabled . | . . . . Max in Single Turn . | . . . . Machines Repaired . | . . . . Machines Dismantled . | . . . . Machines Sabotaged . | . . . . Overloaded Fab Kills . | . . . . Hacking | -11 -10 -9 -9 --------- Run | Yrd Mat Mat Min Machines Accessed 3 | . 2 1 . Terminals 1 | . 1 . . Fabricators . | . . . . Repair Stations 1 | . . 1 . Recycling Units 1 | . 1 . . Scanalyzers . | . . . . Garrison Access . | . . . . Total Hacks 8 | . 6 2 . Successful 6 | . 4 2 . Failed 2 | . 2 . . Catastrophic . | . . . . Database Lockouts . | . . . . Manual 3 | . 3 . . Terminals 5 | . 5 . . Fabricators . | . . . . Repair Stations 2 | . . 2 . Recycling Units 1 | . 1 . . Scanalyzers . | . . . . Garrison Access . | . . . . Terminal Hacks 2 | . 2 . . Alert Level 1 | . 1 . . Locate Traps 1 | . 1 . . Fabricator Hacks . | . . . . Repair Station Hacks 2 | . . 2 . Scan Component 1 | . . 1 . Repair 1 | . . 1 . Recycling Unit Hacks . | . . . . Scanalyzer . | . . . . Garrison Access Hacks . | . . . . Unauthorized Hacks 2 | . 2 . . Terminals 1 | . 1 . . Operators 1 | . 1 . . Fabricators . | . . . . Repair Stations . | . . . . Recycling Units 1 | . 1 . . Reject 1 | . 1 . . Scanalyzers . | . . . . Garrison Access . | . . . . Data Cores Recovered . | . . . . Used . | . . . . Hacking Detections 3 | . 2 1 . Full Trace Events . | . . . . Feedback Events . | . . . . Feedback Blocked . | . . . . Robot Schematics Acquired . | . . . . Robots Built . | . . . . Authchips . | . . . . Time . | . . . . Total Robot Build Rating . | . . . . Part Schematics Acquired . | . . . . Parts Built . | . . . . Authchips . | . . . . Time . | . . . . Total Part Build Rating . | . . . . Parts Repaired 1 | . . 1 . Time 38 | . . 38 . Parts Recycled . | . . . . Recycled Matter . | . . . . Retrieved Matter . | . . . . Retrieved Components . | . . . . Parts Scanalyzed . | . . . . Part Schematics Acquired . | . . . . Parts Damaged . | . . . . Bothacking | -11 -10 -9 -9 ------------ Run | Yrd Mat Mat Min Used RIF Installer . | . . . . Robots Hacked . | . . . . Non-combat . | . . . . Combat . | . . . . Robot Hacks Applied . | . . . . Relay Couplers Released . | . . . . Fabnet Peak Effective % . | . . . . Robots Rewired . | . . . . Allies Hacked . | . . . . Hacks Repelled . | . . . . Allies | -11 -10 -9 -9 -------- Run | Yrd Mat Mat Min Total Allies . | . . . . Largest Group . | . . . . Highest-Rated Group . | . . . . Highest-Rated Ally . | . . . . Total Orders . | . . . . Ally Attacks . | . . . . Total Damage . | . . . . Kills . | . . . . Allies Corrupted . | . . . . Allies Melted . | . . . . Intel | -11 -10 -9 -9 ------- Run | Yrd Mat Mat Min Robot Analysis Total . | . . . . Derelict Logs Recovered . | . . . . Drone Launches . | . . . . Drone Recoveries . | . . . . Exploration | -11 -10 -9 -9 ------------- Run | Yrd Mat Mat Min Turns Passed 12641 | 12000 395 166 80 Spaces Moved 2462 | 1992 297 86 87 Core 47 | 42 . . 5 Treads 2020 | 1950 70 . . Legs . | . . . . Wheels . | . . . . Hover 395 | . 227 86 82 Flight . | . . . . Fastest Speed 50 | 50 77 86 66 Average Speed 145 | 157 96 95 85 Slowest Speed 160 | 160 160 97 100 Overloaded Moves . | . . . . Propulsion Burnouts . | . . . . Robots Hopped . | . . . . Cave-ins Triggered . | . . . . Exploration Rate (%) 52 | 125 55 13 16 Regions Visited 3 Branch Regions 1 Pre-discovered Areas . | . . . . Known Exits Taken . | . . . . Unknown Exits Taken 3 | 1 1 1 . Scrap Searched . | . . . . Spaces Dug . | . . . . Terrain Destroyed . | . . . . Melee . | . . . . Projectile . | . . . . AOE . | . . . . Terrain Rammed . | . . . . Walls Destroyed . | . . . . Machines Disabled . | . . . . Actions | -11 -10 -9 -9 --------- Run | Yrd Mat Mat Min Total 11400 | 10798 364 145 93 Wait 8809 | 8748 17 38 6 Move 2459 | 1991 296 85 87 Hop . | . . . . Pick Up 29 | 16 9 4 . Fast Attach 1 | . . 1 . Attach 11 | 7 2 2 . Detach . | . . . . Swap 5 | 1 4 . . Drop 12 | 1 9 2 . Fire 59 | 24 22 13 . Melee . | . . . . Ram 5 | . 5 . . Kick . | . . . . Crush 10 | 10 . . . Escape Stasis . | . . . . Rewire . | . . . . Trap . | . . . . Miscellaneous . | . . . . Route ------- -11/Scrapyard -10/Materials (discovered 2 exits: *Mat / [*Min]) -9/Materials -9/Mines History --------- Turn | Location | Event 3345 | -11/Scrapyard | Assembled infested the area 3413 | -11/Scrapyard | Discovered new exit (range 15) 12001 | -11/Scrapyard | Entered Materials 12002 | -10/Materials | Build established: Mutant 12143 | -10/Materials | Discovered new exit (range 8) 12306 | -10/Materials | Discovered new exit (range 16) 12350 | -10/Materials | Core integrity fell below 50% 12396 | -10/Materials | Entered another Materials area 12396 | -9/Materials | Evolved 2 slots: Propulsion x2 12454 | -9/Materials | Repaired Imp. Terrain Scanner 12543 | -9/Materials | Discovered new exit (range 12) 12562 | -9/Materials | Entered Mines 12567 | -9/Mines | Assembled infested the area 12593 | -9/Mines | Found a hidden stash of uninstalled traps 12634 | -9/Mines | Core integrity fell below 50% 12640 | -9/Mines | Core integrity fell below 20% 12642 | -9/Mines | Destroyed by D-53 Grenadier with Mini Grenade Launcher Last Messages --------------- LOCATION=UNKNOWN GOAL=ESCAPE Something is scanning the area. 12567_ ALERT: Infestation in the mines, dispatching Demolisher response squad. 12593_ A stash of uninstalled traps is collected here! 12619_ C-30 ARC bursts open, deploying its payload. 12619_ D-53 Grenadier unfolds itself. 12620_ Lgt. Ion Engine destroyed. 12620_ Imp. Assault Rifle destroyed. 12627_ Cmb. Airjet destroyed. 12629_ Imp. Assault Rifle destroyed. 12630_ Lgt. Treads destroyed. 12631_ The unstable cave ceiling collapses. 12633_ Hover Unit destroyed. 12636_ Imp. Terrain Scanner destroyed. 12637_ Cmb. Airjet destroyed. 12638_ The unstable cave ceiling collapses. Map ----- +----------------------------------------------------+ | ????????????????????????????????????????????? | | ????????????????????????????????????????????? | | ????????????????????????????????????????????? | | ????????????????????????????????????????????? | | ????????????????????????????????????????????? | | ????????????????????????????????????????????? | | ????????????????????????????????????????????? | | ????????????????????????????????????????????? | | ????????????????????????????????????????????? | | ????????????????????????????????????????????? | | ??????????????????? ??????????????????????? | | ??????????????????? ??????????????????????? | | ??????????????????? ??????????????????????? | | ?????????????????## ??????????????????????? | | ?????????????????# ??????????????????????? | | ?????????????????? ??????????????????????? | | ?????????????????? ??????????????????????? | | ?????????????????? ??????????????????????? | | ?????????????????? ??????????????????????? | | ???????????????#??# #??????? ??????????????? | | ??????????????????# #?????? ###???????????? | | ??????????????????# #?????? ##??????????? | | ????????????????### #????? #??????????? | | ????????????????# ####?? #?????????? | | ???????????????## #? ?????????? | | ???????????????# @ ## ?????????? | | ???????????????# # ????????? | | ???????????????## * ???????? | | ???????????????# % %=????????? | | ???????????????# !%????????? | | ???????????????## ###### =%!????????? | | ????????????????# #???????????????? | | ????????????????# #?????##????????? | | ??????????????#?### ##??????????????? | | ???????#??????????# dd #?? ???????????? | | ????????#???##???## #??????????????? | | ????????????????## #?#????????????? | | ??????#??????###### #???? ?????????? | | ?????????????# # #??????????????? | | ??????????#### #??????????????? | | ??????????# ### # #??????????????? | | ??#???????# #?## ##??????????????? | | #??#??????# #####??# #??????????????? | | ??????????# #??????# ##??????????????? | | ??????????# ##??#??## ##?????????????? | | ?????????## ##???#?# #??????????????? | | ??#?????## ###???###### ###??????????????? | | ?#??????# ##????????###????????????????? | | ????????# ##??#???????????????????????? | | ????????##### ##?????#???????????????????? | +----------------------------------------------------+ Best States ------------- Heat Dissipation 28 Energy Generation 10 Energy Capacity 125 Matter Stores 300 Matter Capacity 300 Sight Range 16 Terrain Scan Range 16 Terrain Scan Density 10 Evasion (%) 50 Recoil Reduction 2 Item Schematics ----------------- None Robot Schematics ------------------ None Fabricated ------------ Nothing Alien Tech Used ----------------- None Achievements -------------- Curiosity Killed The Cat Challenges ------------ None Game ------ Seed RefineryPropulsionLink Manual? 0 Play Time 00:22:11 Cumulative 32.8 hours Start 2024.08.09 @ 14:21:07 End 2024.08.09 @ 14:50:23 Sessions 1 Manual Loads 0 Difficulty Rogue Special Mode None Game No. 42 Rogue 20 Adventurer 20 Explorer 2 Win Type - Total 0 Types 0/0/0/0/0/0/0/0/0 Lore% 23 Gallery% 30 Achievement% 28 Wizard Run 0 Options --------- Layout 1 ASCII 0 Keyboard 0 Movement Numpad Keybinds 0 Fullscreen 2 Font 24/Smallcaps Map View 50x35 Zoom Use 0% Tactical HUD 1 Map Filters NONE Filters NONE Steam 1 RUN: d259a251-486f-40f0-8661-969d4d872067